bitfinex/quotes_ETHUSD_20250404
["timestamp","ask_amount","ask_price","bid_price","bid_amount"]
[1743771530969,5.6464,1786.9,1786.6,5.59722]
[1743771531311,5.6464,1786.9,1786.5,6.16275894]
[1743771531509,5.6464,1786.9,1786.5,11.76009894]
[1743771532079,5.6464,1786.9,1786.6,5.59718]
[1743771532312,0.05,1786.9,1786.6,5.59718]
[1743771532514,0.05,1786.9,1786.6,6.77316589]
[1743771532697,0.05,1786.9,1786.7,5.59689]
[1743771532902,0.05,1786.9,1786.8,5.59659]
[1743771533417,0.05,1786.9,1786.7,1.5548]
[1743771533618,0.05,1786.9,1786.6,6.77318589]
[1743771533827,0.05,1786.9,1786.7,6.27415859]
[1743771534033,0.05,1786.9,1786.7,6.27403859]
[1743771535336,0.05,1786.9,1786.8,5.59659]
[1743771535525,0.05,1786.9,1786.8,11.45720085]
[1743771535692,0.05,1786.9,1786.8,7.15139]
[1743771535892,0.05,1786.9,1786.8,8.49393286]
[1743771536402,0.05,1786.9,1786.8,1.34254286]
[1743771536608,0.05,1786.9,1786.7,6.27403859]
[1743771536831,0.05,1786.9,1786.8,5.59659]
[1743771537035,5.59704,1786.7,1786.3,1.5548]
[1743771537196,5.59704,1786.7,1785.6,5.60025]
[1743771537197,5.59695,1786.7,1786.1,1.5548]
[1743771537395,5.59695,1786.7,1786.3,5.59794]
[1743771537634,5.59726,1786.6,1786.3,5.59794]
[1743771537937,7.10356,1786.6,1786.2,11.19663]
[1743771538095,7.10356,1786.6,1786.3,5.6541353]
[1743771538297,7.10356,1786.6,1786.3,6.77937883]
[1743771538491,12.70103,1786.6,1786.3,1.18121883]
[1743771538732,5.59794,1786.4,1786.1,1.5548]
[1743771538940,5.59794,1786.4,1785.9,7.001]
[1743771538941,5.59817,1786.3,1786.0,5.65507246]
[1743771539122,5.59794,1786.4,1786.0,5.65496246]
[1743771539320,5.59794,1786.4,1786.1,5.59877]
[1743771539522,7.10353,1786.6,1786.2,5.59846]
[1743771539722,7.10353,1786.6,1786.2,11.81259846]
[1743771539922,7.10353,1786.6,1786.2,6.158156]
[1743771540112,5.59791,1786.4,1786.2,0.559846]
[1743771540438,5.59785,1786.4,1786.2,0.559846]
[1743771540610,5.59785,1786.4,1786.1,5.59874]
[1743771540805,5.59763,1786.5,1786.1,5.59874]
[1743771541006,5.59854,1786.2,1785.7,5.59989]
[1743771541209,5.59854,1786.2,1785.6,7.12203833]
[1743771541210,5.59925,1786.0,1785.6,5.6003]
[1743771541417,5.59915,1786.0,1785.5,1.5548]
[1743771541626,5.5993,1786.0,1785.6,5.60023]
[1743771541823,3.0,1786.1,1785.7,0.560023]
[1743771542037,1.5029,1786.2,1785.7,0.61601736]
[1743771542243,1.5029,1786.2,1786.0,5.59909]
[1743771542447,1.6542,1786.5,1786.1,5.5985]
[1743771542607,1.6542,1786.5,1786.2,0.0559815]
[1743771542809,7.25082,1786.8,1786.3,11.19591]
[1743771543025,10.2508,1786.8,1786.4,0.0559721]
[1743771543229,15.84763,1786.8,1786.4,0.0559721]
[1743771543628,5.59698,1786.7,1786.2,6.72377515]
[1743771543951,4.6542,1786.8,1786.1,5.59869]
[1743771543952,5.59757,1786.5,1786.1,5.59869]
[1743771544114,5.59757,1786.5,1786.1,0.05598332]
[1743771544313,7.10426,1786.4,1786.0,5.5989]
[1743771544943,1.5064,1786.4,1786.1,0.05598117]
[1743771545138,1.5064,1786.4,1785.9,7.15401]
[1743771545139,5.59868,1786.2,1785.7,7.672053]
[1743771545451,5.59889,1786.1,1785.8,0.7672053]
[1743771545815,7.10426,1786.4,1785.8,0.7672053]
[1743771545816,5.5983,1786.3,1785.8,5.59959]
[1743771546149,1.5064,1786.4,1786.0,11.19803]
[1743771546350,5.59836,1786.3,1785.9,5.5993]
[1743771546550,5.59911,1786.0,1785.7,7.11189]
[1743771546729,5.59911,1786.0,1785.6,11.20049]
[1743771546928,12.80941,1786.1,1785.7,6.77604051]
[1743771547141,5.59943,1785.9,1785.7,1.17604051]
[1743771547318,5.59943,1785.9,1785.6,5.65634492]
[1743771547931,5.5991,1786.0,1785.6,0.05599492]
[1743771548150,5.60004,1785.7,1785.4,5.60096]
[1743771548353,5.60005,1785.7,1785.4,5.6569628]
[1743771548654,5.59966,1785.9,1785.5,6.16621628]
[1743771548810,5.60023,1785.7,1785.5,0.56569628]
[1743771549014,5.59972,1785.9,1785.5,5.60043]
[1743771549214,5.59986,1785.8,1785.5,5.60043]
[1743771549447,8.6065,1786.1,1785.4,5.60088]
[1743771549646,5.59989,1785.8,1785.4,11.25768903]
[1743771549833,14.20542,1786.1,1785.7,5.59994]
[1743771550237,5.59826,1786.3,1785.9,5.5993]
[1743771550420,25.181,1786.5,1786.0,0.05598562]
[1743771550610,5.59785,1786.4,1785.8,1.5548]
[1743771550816,5.59895,1786.1,1785.8,7.15451]
[1743771551050,5.59895,1786.1,1785.9,0.77143875]
[1743771551240,5.59895,1786.1,1785.9,0.715451]
[1743771551818,5.59851,1786.2,1785.8,5.59944]
[1743771552022,5.59851,1786.2,1785.9,5.59931]
[1743771552218,5.59847,1786.2,1785.7,11.19985]
[1743771552420,7.13735,1786.3,1785.6,1.5083]
[1743771552631,5.59857,1786.2,1785.8,5.65564745]
[1743771552837,5.59917,1786.0,1785.6,7.1085]
[1743771553024,5.59917,1786.0,1785.6,12.70871]
[1743771553249,5.59883,1786.1,1785.7,5.65584074]
[1743771553553,11.19778,1786.1,1785.7,5.65584074]
[1743771553758,5.59883,1786.1,1785.7,5.65584074]
[1743771553942,5.5992,1786.0,1785.7,1.27644707]
[1743771554154,5.5986,1786.2,1785.9,5.59923]
[1743771554327,5.59895,1786.1,1785.7,6.87627707]
[1743771554535,5.5991,1786.0,1785.7,6.9322686]
[1743771554828,11.1979,1786.1,1785.7,12.5321586]
[1743771555158,5.59786,1786.4,1786.1,5.59866]
[1743771555515,5.59818,1786.3,1786.0,1.5548]
[1743771555721,5.59818,1786.3,1786.1,0.05598149]
[1743771555948,5.59786,1786.4,1786.1,0.05598149]
[1743771556155,5.59789,1786.4,1786.1,6.93540264]
[1743771556377,11.19603,1786.4,1786.1,1.33685264]
[1743771556872,5.59789,1786.4,1786.1,6.93563264]
[1743771557237,12.76489,1786.5,1786.1,6.93558264]
[1743771557433,1.5911,1786.8,1786.2,0.69355826]
[1743771557637,0.05,1786.9,1786.6,5.59696]
[1743771557829,0.05,1786.9,1786.7,0.0559635]
[1743771558030,5.59704,1786.7,1786.4,1.5324]
[1743771558266,5.59661,1786.8,1786.4,1.58837051]
[1743771558464,5.59661,1786.8,1786.5,5.59743]
[1743771558665,5.597,1786.7,1786.4,7.18611051]
[1743771558875,5.59673,1786.8,1786.5,5.59729]
[1743771559082,11.19353,1786.8,1786.4,8.40864105]
[1743771559376,11.19353,1786.8,1786.5,0.05596864]
[1743771559572,11.19353,1786.8,1786.4,8.40851105]
[1743771559573,5.59693,1786.7,1786.4,2.81082105]
[1743771559756,11.19353,1786.8,1786.4,7.18606957]
[1743771559939,5.59665,1786.8,1786.4,7.18606957]
[1743771560158,5.59742,1786.6,1786.2,12.80745957]
[1743771560351,5.59755,1786.5,1786.3,0.05597489]
[1743771560558,5.59755,1786.5,1786.2,1.5548]
[1743771560779,5.59727,1786.6,1786.3,0.05597589]
[1743771560971,5.59727,1786.6,1786.3,5.65411589]
[1743771561268,5.59727,1786.6,1786.3,0.72089159]
[1743771561269,5.59753,1786.5,1786.3,0.72089159]
[1743771561596,5.59765,1786.5,1786.2,1.5548]
[1743771561795,0.05,1786.9,1786.8,5.59659]
[1743771562093,0.05,1786.9,1786.3,1.5168]
[1743771562294,0.05,1786.9,1786.1,5.59866]
[1743771562295,5.59768,1786.5,1786.1,5.59866]
[1743771562465,5.59768,1786.5,1786.1,11.757176]
[1743771562668,6.987,1786.8,1786.3,5.59816]
[1743771562868,0.05,1786.9,1786.7,5.59691]
[1743771563194,0.05,1786.9,1786.8,7.15019]
[1743771563399,0.05,1786.9,1786.8,7.70019]
[1743771563595,0.05,1786.9,1786.8,9.029886]
[1743771563796,1.6273,1787.8,1787.3,0.55]
[1743771563969,0.05,1787.9,1787.4,0.0559348]
[1743771564169,5.5944,1787.5,1787.2,5.59523]
[1743771564369,5.5944,1787.5,1787.1,7.15041]
[1743771564577,5.59473,1787.4,1787.1,2.829436]
[1743771564777,7.21892,1787.6,1787.2,5.65106623]
[1743771565101,5.59425,1787.6,1787.2,5.59512]
[1743771565287,11.18856,1787.6,1787.2,5.59512]
[1743771565493,5.59425,1787.6,1787.3,5.59503]
[1743771565658,1.5877,1787.9,1787.4,5.59468]
[1743771565864,5.59356,1787.8,1787.4,5.59456]
[1743771566061,5.59378,1787.7,1787.3,6.714025]
[1743771566707,5.5941,1787.6,1787.2,11.19046]
[1743771566885,5.59465,1787.5,1787.1,7.15029]
[1743771567199,4.5616,1787.7,1786.9,1.5342]
[1743771567362,5.59487,1787.4,1787.0,11.19168]
[1743771567563,5.59487,1787.4,1787.0,5.59584]
[1743771567796,5.59571,1787.1,1786.9,1.5342]
[1743771567996,5.59534,1787.2,1786.5,1.5283]
[1743771567997,3.0,1787.2,1786.5,1.5283]
[1743771568301,5.5959,1787.1,1786.7,5.59671]
[1743771568496,3.0,1787.2,1786.5,1.5283]
[1743771568674,5.59579,1787.1,1786.7,5.59679]
[1743771568865,5.59579,1787.1,1786.6,5.59722]
[1743771568866,5.59612,1787.0,1786.6,5.59722]
[1743771569200,5.59632,1786.9,1786.6,5.59722]
[1743771569674,3.0,1787.2,1786.6,5.59703]
[1743771570008,0.3,1787.1,1786.7,5.65278264]
[1743771570164,0.3,1787.1,1786.5,1.5283]
[1743771570371,0.3,1787.1,1786.6,5.59718]
[1743771570372,5.596,1787.0,1786.6,5.59718]
[1743771570569,5.596,1787.0,1786.6,5.5971]
[1743771570789,11.1928,1786.9,1786.5,7.12581]
[1743771570993,5.5963,1786.9,1786.5,9.096214]
[1743771571267,11.19235,1787.0,1786.6,5.59705]
[1743771571471,5.59635,1786.9,1786.6,5.59705]
[1743771571889,5.59614,1787.0,1786.6,5.6530828]
[1743771572065,11.1923,1787.0,1786.6,5.6530328]
[1743771572462,11.19232,1787.0,1786.6,5.6530328]
[1743771572699,5.5962,1787.0,1786.6,0.0559628]
[1743771572910,5.59675,1786.8,1786.5,1.5283]
[1743771573210,5.5966,1786.8,1786.5,7.12563]
[1743771573415,5.59662,1786.8,1786.3,7.70267]
[1743771573575,5.59701,1786.7,1786.3,13.30071]
[1743771573904,5.59701,1786.7,1786.3,8.482741]
[1743771574107,5.59701,1786.7,1786.4,5.59782]
[1743771574292,11.19414,1786.7,1786.3,8.482741]
[1743771574464,5.59701,1786.7,1786.3,8.482741]
[1743771574671,5.59701,1786.7,1786.3,14.080791]
[1743771574870,5.59662,1786.8,1786.3,2.884871]
[1743771575222,5.59692,1786.7,1786.4,5.59757]
[1743771575924,5.59724,1786.6,1786.3,7.1529]
[1743771576227,5.59692,1786.7,1786.3,12.75085]
[1743771576432,5.59692,1786.7,1786.3,12.75079]
[1743771576732,5.59692,1786.7,1786.3,7.15279]
[1743771576733,5.59733,1786.6,1786.3,7.15279]
[1743771576928,5.59733,1786.6,1786.2,7.15316]
[1743771577091,7.23849,1786.9,1786.5,5.59743]
[1743771577092,5.59681,1786.8,1786.5,5.59743]
[1743771577293,12.83495,1786.9,1786.5,5.59743]
[1743771577501,5.5966,1786.8,1786.5,5.59743]
[1743771577701,7.23848,1786.9,1786.3,0.715279]
[1743771577702,5.59727,1786.6,1786.3,0.715279]
[1743771578027,5.59727,1786.6,1786.3,5.59815]
[1743771578328,7.23858,1786.9,1786.2,1.5548]
[1743771578329,5.59665,1786.8,1786.2,1.5548]
[1743771578490,5.59699,1786.7,1786.3,11.19601]
[1743771578690,5.59665,1786.8,1786.5,5.5975]
[1743771578890,5.59703,1786.7,1786.3,6.65511868]
[1743771579089,11.19418,1786.7,1786.3,6.59914676]
[1743771579325,5.59703,1786.7,1786.3,12.19719676]
[1743771579638,11.19411,1786.7,1786.3,12.19719676]
[1743771579925,8.6182,1786.9,1786.1,5.5986]
[1743771579926,5.59766,1786.5,1786.1,5.5986]
[1743771580131,7.21931,1786.6,1786.2,5.5984]
[1743771580332,5.59795,1786.4,1785.7,5.60004]
[1743771580527,5.5985,1786.2,1786.0,1.5548]
[1743771580727,5.5985,1786.2,1785.9,5.59931]
[1743771580927,5.59797,1786.4,1786.1,5.59868]
[1743771581126,5.59797,1786.4,1786.1,5.59865]
[1743771581328,1.513,1786.5,1785.9,6.314541]
[1743771581630,5.59844,1786.3,1785.9,11.25438256]
[1743771581849,5.59836,1786.3,1786.0,5.59892]
[1743771582130,1.513,1786.5,1786.0,5.59885]
[1743771582301,7.11056,1786.5,1786.1,0.05598318]
[1743771582508,7.11056,1786.5,1786.1,5.59861]
[1743771582934,7.11056,1786.5,1786.2,5.59844]
[1743771583104,8.59726,1786.6,1786.3,5.65403911]
[1743771583105,5.59724,1786.6,1786.3,5.65403911]
[1743771583311,5.59724,1786.6,1786.3,5.59812]
[1743771583508,11.19464,1786.6,1786.3,5.59812]
[1743771583710,11.19464,1786.6,1786.3,0.05597597]
[1743771583927,11.19464,1786.6,1786.2,11.19677]
[1743771584217,5.59829,1786.3,1786.0,5.59907]
[1743771584530,5.59757,1786.5,1786.1,5.59863]
[1743771584704,11.19526,1786.5,1786.1,5.59863]
[1743771584910,5.59788,1786.4,1786.1,5.59863]
[1743771585217,11.19533,1786.5,1786.1,5.59863]
[1743771585422,7.19193,1786.7,1786.3,11.19609]
[1743771585596,12.78909,1786.7,1786.3,5.59793]
[1743771585799,5.59728,1786.6,1786.3,5.59793]
[1743771586097,1.5504,1787.3,1786.6,1.5548]
[1743771586306,5.59514,1787.3,1787.0,5.59594]
[1743771586517,5.59514,1787.3,1787.0,7.15074]
[1743771586999,1.5504,1787.5,1787.0,7.15074]
[1743771587000,7.14485,1787.5,1787.1,5.59544]
[1743771587195,2.8243,1787.5,1787.3,5.59486]
[1743771587396,7.2358,1787.7,1787.2,5.59513]
[1743771587637,5.59423,1787.6,1787.2,5.59513]
[1743771587832,11.18851,1787.6,1787.2,11.19036]
[1743771588037,5.59423,1787.6,1787.2,11.19036]
[1743771588238,6.317853,1787.6,1787.2,5.59513]
[1743771588416,5.59441,1787.5,1787.2,5.59513]
[1743771588737,11.18978,1787.4,1787.0,7.15066]
[1743771588939,5.59476,1787.4,1787.0,11.19166]
[1743771589242,5.59503,1787.3,1787.0,5.5958]
[1743771589538,5.59476,1787.4,1787.0,5.5958]
[1743771589739,11.18966,1787.4,1787.0,5.5958]
[1743771590043,5.59476,1787.4,1787.0,11.19165]
[1743771590247,0.723623,1787.6,1786.9,5.5961]
[1743771590248,5.59514,1787.3,1786.9,5.5961]
[1743771590454,8.6233,1787.3,1786.6,1.5548]
[1743771590641,5.59579,1787.1,1786.7,11.24955414]
[1743771590952,5.59563,1787.2,1786.8,5.59647]
[1743771591125,5.59507,1787.3,1786.9,5.59626]
[1743771591315,5.59542,1787.2,1786.8,5.59654]
[1743771591517,5.59573,1787.1,1786.8,5.59654]
[1743771592354,5.5961,1787.0,1786.7,5.59685]
[1743771592518,5.5961,1787.0,1786.6,12.74913]
[1743771592519,11.19226,1787.0,1786.6,12.74913]
[1743771592851,11.19226,1787.0,1786.6,12.749]
[1743771592852,5.59628,1786.9,1786.6,12.749]
[1743771593054,5.59612,1787.0,1786.6,1.5548]
[1743771593221,5.59612,1787.0,1786.6,12.74903]
[1743771593425,1.627,1787.1,1786.5,5.59751]
[1743771593658,5.59661,1786.8,1786.5,5.59751]
[1743771593860,11.19342,1786.8,1786.4,7.11133]
[1743771594042,11.19342,1786.8,1786.4,12.70902]
[1743771594359,5.59707,1786.7,1786.4,1.5135]
[1743771594657,5.5967,1786.8,1786.4,1.5135]
[1743771594953,6.967,1787.0,1786.7,5.59686]
[1743771595158,18.15928,1787.0,1786.6,5.59711]
[1743771595314,5.59661,1786.8,1786.5,5.59728]
[1743771595519,5.5963,1786.9,1786.5,11.19471]
[1743771595714,12.56303,1787.0,1786.6,5.65296458]
[1743771595965,5.59639,1786.9,1786.6,5.65296458]
[1743771596144,18.15922,1787.0,1786.6,11.19407]
[1743771596355,5.59628,1786.9,1786.6,5.597]
[1743771596565,4.627,1787.1,1786.6,5.597]
[1743771596566,12.81852,1787.1,1786.7,5.59675]
[1743771596733,11.19153,1787.1,1786.8,5.59646]
[1743771597069,19.77146,1787.3,1787.0,5.59592]
[1743771597219,7.21123,1787.3,1786.9,5.59624]
[1743771597414,5.59535,1787.2,1786.9,5.59617]
[1743771597665,11.19111,1787.2,1786.8,8.270601]
[1743771597859,1.6161,1787.3,1786.8,1.5548]
[1743771598064,5.5958,1787.1,1786.8,5.59658]
[1743771598238,7.21127,1787.3,1786.8,5.59644]
[1743771598444,12.80651,1787.3,1786.9,5.59615]
[1743771598839,1.6161,1787.3,1787.1,5.5955]
[1743771599040,1.13987247,1787.6,1786.7,0.55]
[1743771599041,0.723623,1787.6,1787.0,1.5548]
[1743771599239,1.6262,1787.8,1787.2,5.59511]
[1743771599466,0.05,1787.9,1787.7,5.5935]
[1743771599674,0.05,1787.9,1787.6,5.59407]
[1743771599835,5.6433,1787.9,1787.7,1.61072965]
[1743771600034,5.64316,1787.9,1787.7,1.5548]
[1743771600260,0.05,1787.9,1787.6,5.64998067]
[1743771600472,0.05,1787.9,1787.8,5.59346]
[1743771600676,0.05,1787.9,1787.8,7.18758747]
[1743771600832,0.05,1787.9,1787.8,7.73758747]
[1743771601039,0.05,1787.9,1787.8,10.68166]
[1743771601951,1.6625,1788.7,1788.4,5.59147]
[1743771602155,7.25317,1788.7,1788.3,5.59187]
[1743771602342,2.946859,1788.7,1788.2,1.5548]
[1743771602535,5.59174,1788.4,1788.0,7.14748]
[1743771602853,5.5924,1788.2,1787.8,7.6982]
[1743771603034,5.59203,1788.3,1787.8,7.69816]
[1743771603368,5.59161,1788.4,1788.0,5.59279]
[1743771603671,5.59193,1788.3,1787.9,5.64889061]
[1743771603869,5.59237,1788.2,1787.8,7.14825]
[1743771604069,5.59176,1788.4,1788.0,5.59268]
[1743771604281,3.0,1788.5,1787.9,0.05592192]
[1743771604570,5.59244,1788.2,1787.8,7.14824]
[1743771604770,7.21014,1788.3,1787.6,7.14887]
[1743771604996,5.59318,1787.9,1787.6,1.5548]
[1743771605305,7.21149,1787.9,1787.4,5.59455]
[1743771605581,5.59463,1787.5,1787.1,7.15027]
[1743771605791,0.721149,1787.8,1787.2,0.05594578]
[1743771605939,0.721149,1787.8,1787.1,2.829423]
[1743771605940,5.59329,1787.9,1787.5,5.59412]
[1743771606149,5.59287,1788.0,1787.6,5.59407]
[1743771606338,5.59349,1787.8,1787.4,7.1493]
[1743771606676,5.59317,1787.9,1787.5,11.18852]
[1743771606874,5.59317,1787.9,1787.4,8.21925]
[1743771607076,1.6203,1788.1,1787.5,5.59419]
[1743771607240,1.5062,1788.3,1788.1,5.59237]
[1743771607445,5.59081,1788.7,1788.3,5.59178]
[1743771607678,5.59133,1788.5,1788.1,7.14722]
[1743771607883,2.760981,1788.7,1788.1,1.5548]
[1743771608042,8.351741,1788.7,1788.3,5.59175]
[1743771608242,2.760981,1788.7,1788.2,0.05591308]
[1743771608468,7.09702,1788.7,1788.3,5.59177]
[1743771608672,7.09702,1788.7,1788.2,5.5922]
[1743771608673,5.59103,1788.6,1788.2,5.5922]
[1743771608847,5.59131,1788.5,1788.1,7.14723]
[1743771609049,5.59178,1788.4,1788.1,1.5548]
[1743771609343,5.59102,1788.6,1787.9,5.59312]
[1743771609543,7.15914,1788.3,1787.8,7.11475]
[1743771609761,5.59224,1788.2,1787.8,7.11459]
[1743771609968,11.18476,1788.2,1787.8,7.11459]
[1743771610296,5.59258,1788.1,1787.8,1.5213]
[1743771610440,1.567,1788.3,1787.7,6.956]
[1743771610643,5.59317,1787.9,1787.6,1.5548]
[1743771611045,7.15637,1787.9,1787.5,5.59421]
[1743771611383,5.59263,1788.1,1787.7,5.59365]
[1743771611682,6.954,1788.3,1788.0,5.59273]
[1743771611894,1.5759,1788.4,1788.0,0.05592487]
[1743771612046,1.5759,1788.6,1788.3,5.59172]
[1743771612367,5.59065,1788.7,1788.3,5.59178]
[1743771612567,5.59139,1788.5,1788.2,1.5184]
[1743771612779,5.59139,1788.5,1788.2,8.380856]
[1743771612983,1.5916,1788.8,1788.3,0.05591176]
[1743771613293,7.18194,1788.8,1788.4,5.59143]
[1743771613464,1.5916,1788.8,1788.4,5.59143]
[1743771613664,5.64004,1788.9,1788.5,5.64697435]
[1743771613891,0.05,1788.9,1788.6,5.59085]
[1743771614065,5.59041,1788.8,1788.4,5.5914]
[1743771614257,5.59041,1788.8,1788.3,5.59179]
[1743771614460,5.59076,1788.7,1788.3,6.998009]
[1743771614655,5.59076,1788.7,1788.2,14.06257]
[1743771614656,7.10587,1788.6,1788.2,8.4704]
[1743771614861,7.10587,1788.6,1788.1,5.59248]
[1743771614862,11.18297,1788.5,1788.1,5.59248]
[1743771615063,1.5148,1788.6,1788.1,5.59252]
[1743771615280,1.5148,1788.6,1788.3,5.5918]
[1743771615573,5.59069,1788.7,1788.3,5.5918]
[1743771615767,5.59069,1788.7,1788.3,5.59186]
[1743771616176,1.5007,1788.8,1788.1,5.59247]
[1743771616177,5.59098,1788.6,1788.1,5.59247]
[1743771616381,5.59116,1788.6,1788.1,0.714727]
[1743771616587,1.5007,1788.8,1788.5,5.59123]
[1743771616799,7.09126,1788.8,1788.4,5.59146]
[1743771616971,5.59077,1788.7,1788.3,5.5919]
[1743771617165,7.09109,1788.8,1788.4,5.5914]
[1743771617370,7.09109,1788.8,1788.3,5.59174]
[1743771617594,5.59065,1788.7,1788.3,5.59174]
[1743771617908,8.364207,1788.8,1788.5,5.59112]
[1743771617909,1.5007,1788.8,1788.5,5.59112]
[1743771619067,0.05,1788.9,1788.6,5.5909]
[1743771619291,0.05,1788.9,1788.8,7.14513]
[1743771619495,0.05,1788.9,1788.8,14.09313]
[1743771619968,0.05,1788.9,1788.8,14.64313]
[1743771620426,0.05,1788.9,1788.8,14.09313]
[1743771620630,0.05,1788.9,1788.8,1.5548]
[1743771620786,0.05,1788.9,1788.6,11.36535559]
[1743771620787,0.05,1788.9,1788.7,12.53764]
[1743771620989,0.05,1788.9,1788.7,8.8872113]
[1743771621817,0.05,1788.9,1788.5,5.59124]
[1743771621818,0.05,1788.9,1788.5,5.59113]
[1743771622021,5.64004,1788.9,1788.4,5.59155]
[1743771622218,1.0784,1788.9,1788.5,0.05589947]
[1743771622423,6.66852,1788.9,1788.4,5.59142]
[1743771622599,6.66842,1788.9,1788.4,1.8557457]
[1743771622920,5.59049,1788.8,1788.2,11.18412]
[1743771623099,6.66847,1788.9,1788.3,5.64777384]
[1743771623296,1.0784,1788.9,1788.4,5.59159]
[1743771623519,0.05,1788.9,1788.6,5.59073]
[1743771623822,0.05,1788.9,1788.5,5.59123]
[1743771623986,0.05,1788.9,1788.1,6.14221]
[1743771624323,11.1817,1788.7,1788.1,12.53621]
[1743771624507,5.59097,1788.6,1788.1,12.53621]
[1743771624709,5.59104,1788.6,1788.1,6.944]
[1743771624909,1.0112,1788.6,1787.9,5.59314]
[1743771625207,5.59206,1788.3,1787.9,1.1610594]
[1743771625407,5.59242,1788.2,1787.6,5.59407]
[1743771625615,6.64196,1788.1,1787.6,5.59407]
[1743771625930,1.0493,1788.1,1787.5,20.70513827]
[1743771626134,1.0493,1788.1,1787.7,0.05592514]
[1743771626299,1.0652,1788.4,1788.0,5.59284]
[1743771626627,5.5919,1788.3,1788.0,0.05591769]
[1743771626794,5.5919,1788.3,1787.8,5.59334]
[1743771627110,5.59232,1788.2,1787.6,5.59381]
[1743771627311,5.59232,1788.2,1787.7,5.64951123]
[1743771627534,5.5919,1788.3,1787.7,5.64951123]
[1743771627701,5.59245,1788.2,1787.8,0.56495112]
[1743771627901,5.59269,1788.1,1787.9,0.05592123]
[1743771628107,5.59284,1788.0,1787.5,8.58980605]
[1743771628309,5.59302,1788.0,1787.5,8.58980605]
[1743771628512,5.5933,1787.9,1787.5,2.57347827]
[1743771628687,5.59348,1787.8,1787.5,2.57347827]
[1743771629192,5.5933,1787.9,1787.5,2.57347827]
[1743771629723,1.0356,1788.1,1787.7,5.59363]
[1743771629936,6.62932,1788.3,1787.8,6.20857823]
[1743771630226,1.0418,1788.5,1788.1,5.59226]
[1743771630422,12.22333,1788.7,1788.2,5.64807995]
[1743771630923,1.0918,1788.9,1788.4,5.59147]
[1743771631097,6.68184,1788.9,1788.5,0.559147]
[1743771631493,6.68184,1788.9,1788.5,6.150367]
[1743771631714,6.68184,1788.9,1788.5,0.559147]
[1743771631942,5.59035,1788.8,1788.5,0.559147]
[1743771632142,5.59035,1788.8,1788.3,11.1836]
[1743771632343,0.05,1788.9,1788.5,5.5912]
[1743771632645,0.05,1788.9,1788.5,11.18236]
[1743771632843,0.05,1788.9,1788.6,5.64685726]
[1743771633045,0.05,1788.9,1788.8,5.59033]
[1743771633246,0.05,1788.9,1788.8,0.05589282]
[1743771633543,0.05,1788.9,1788.6,5.59091]
[1743771633841,0.05,1788.9,1788.7,0.559091]
[1743771634045,0.05,1788.9,1788.5,11.18226]
[1743771634211,0.05,1788.9,1788.6,5.59096]
[1743771634549,0.05,1788.9,1788.4,12.53255]
[1743771634743,0.05,1788.9,1788.6,5.59074]
[1743771634945,0.05,1788.9,1788.5,5.59116]
[1743771635148,1.0812,1788.9,1788.3,5.59184]
[1743771635311,5.59128,1788.5,1788.1,0.05590364]
[1743771635507,5.59163,1788.4,1788.0,5.59284]
[1743771635712,6.62248,1788.5,1787.7,25.151]
[1743771635713,1.0312,1788.5,1787.7,0.42775728]
[1743771635949,5.593,1788.0,1787.5,8.73347827]
[1743771636144,5.59333,1787.9,1787.5,1.75158427]
[1743771636530,6.65274,1788.1,1787.6,5.59393]
[1743771636744,6.65274,1788.1,1787.5,7.34596427]
[1743771636745,5.5932,1787.9,1787.5,1.75158427]
[1743771636941,1.0602,1788.1,1787.6,5.65002149]
[1743771637162,1.0602,1788.1,1787.2,5.59522]
[1743771637163,5.59284,1788.0,1787.2,5.59522]
[1743771637384,1.1048,1787.6,1787.1,5.59565]
[1743771637526,5.59475,1787.4,1786.9,5.59603]
[1743771637727,1.1048,1787.8,1787.0,0.46736087]
[1743771637974,1.1048,1787.8,1786.7,10.39636969]
[1743771638130,5.59409,1787.6,1787.1,5.59545]
[1743771638325,5.59409,1787.6,1787.2,0.559545]
[1743771638559,5.59452,1787.5,1787.0,5.59596]
[1743771638771,5.59411,1787.6,1787.1,5.59561]
[1743771638966,1.1048,1787.8,1787.2,0.05594258]
[1743771638967,6.69852,1787.8,1787.2,0.05594258]
[1743771639269,5.59408,1787.7,1787.2,5.59517]
[1743771639474,5.59408,1787.7,1787.3,0.05594255]
[1743771639628,5.59421,1787.6,1787.3,0.05594255]
[1743771640067,5.59404,1787.7,1787.2,5.59514]
[1743771640233,5.59404,1787.7,1787.3,0.559514]
[1743771640567,5.59404,1787.7,1787.2,5.59532]
[1743771640728,5.59428,1787.6,1787.1,5.59562]
[1743771640932,6.69833,1787.8,1787.2,5.65126062]
[1743771641169,1.1048,1787.8,1787.4,5.59468]
[1743771641377,1.1048,1787.8,1787.5,0.05593691]
[1743771641937,1.1048,1787.8,1787.5,6.7747316]
[1743771642148,1.1048,1787.8,1787.5,1.1804416]
[1743771642376,1.1048,1787.8,1787.4,5.59454]
[1743771642881,5.59391,1787.7,1787.2,11.19049]
[1743771643182,5.59377,1787.7,1786.8,3.42377639]
[1743771643472,5.59576,1787.1,1786.6,5.59707]
[1743771643775,1.0627,1787.3,1786.4,5.59756]
[1743771643776,5.59622,1787.0,1786.4,5.59756]
[1743771643932,5.59622,1787.0,1786.4,0.60095106]
[1743771643933,1.059,1786.8,1786.4,0.60095106]
[1743771644149,0.559622,1787.0,1786.7,5.59668]